fUST/lending_fUST_20240226
["ID","MTS","AMOUNT","RATE_DAILY","PERIOD"]
[315189097,1708915834329,-567.98620542,0.00017267,2]
[315189098,1708915834340,-462.228,0.00017267,2]
[315189099,1708915834352,-325.14397417,0.00017267,2]
[315189100,1708915834364,-439.565,0.00017267,2]
[315189101,1708915834383,-4240.98830001,0.00017267,2]
[315189127,1708915838487,-78251.02334435,0.00017267,2]
[315189128,1708915838497,-25267.385501,0.00017799,2]
[315189129,1708915838506,-24900.0,0.00017918,2]
[315189130,1708915838515,-531.1683569,0.00018083,2]
[315189131,1708915838524,-286.8087047,0.00018084,2]
[315189132,1708915838533,-201.86765226,0.000187,2]
[315189133,1708915838542,-201.86765226,0.000187,2]
[315189134,1708915838551,-334.56846157,0.000189,2]
[315189135,1708915838561,-183.84254852,0.00019,2]
[315189136,1708915838570,-200.0,0.000191,2]
[315189137,1708915838579,-10093.77063485,0.00019176,2]
[315189138,1708915838588,-500.0,0.00019178,2]
[315189139,1708915838598,-501.01565508,0.00019178,2]
[315189140,1708915838607,-151.0,0.00019178,2]
[315189141,1708915838616,-500.0,0.00019178,2]
[315189142,1708915838625,-500.0,0.00019178,2]
[315189143,1708915838634,-291.00212191,0.00019178,2]
[315189144,1708915838643,-500.0,0.00019178,2]
[315189145,1708915838652,-500.0,0.00019178,2]
[315189146,1708915838661,-752.54,0.00019178,2]
[315189147,1708915838675,-1393.51,0.00019178,2]
[315189148,1708915838688,-500.35866528,0.00019178,2]
[315189149,1708915838701,-500.0,0.00019178,2]
[315189150,1708915838715,-635.83996825,0.00019178,2]
[315189151,1708915838725,-500.0,0.00019178,2]
[315189152,1708915838735,-500.0,0.00019178,2]
[315189153,1708915838748,-1000.0,0.00019178,2]
[315189154,1708915838759,-500.0,0.00019178,2]
[315189155,1708915838771,-500.0,0.00019178,2]
[315189156,1708915838783,-510.36105547,0.00019178,2]
[315189157,1708915838796,-501.52534223,0.00019178,2]
[315189158,1708915838808,-500.0,0.00019178,2]
[315189159,1708915838820,-500.0,0.00019178,2]
[315189160,1708915838831,-500.0,0.00019178,2]
[315189161,1708915838841,-500.0,0.00019178,2]
[315189162,1708915838853,-500.0,0.00019178,2]
[315189163,1708915838865,-500.0,0.00019178,2]
[315189164,1708915838878,-500.0,0.00019178,2]
[315189165,1708915838889,-510.91242024,0.00019178,2]
[315189166,1708915838901,-501.56333098,0.00019178,2]
[315189167,1708915838913,-593.05407186,0.00019178,2]
[315189168,1708915838925,-500.0,0.00019178,2]
[315189169,1708915838937,-500.0,0.00019178,2]
[315189170,1708915838946,-501.64126338,0.00019178,2]
[315189171,1708915838956,-500.0,0.00019178,2]
[315189172,1708915838969,-1528.5,0.00019178,2]
[315189173,1708915838981,-500.0,0.00019178,2]
[315189174,1708915838992,-284.91608667,0.00019178,2]
[315189175,1708915839005,-500.48866021,0.00019178,2]
[315189176,1708915839016,-500.0,0.00019178,2]
[315189177,1708915839026,-549.12685038,0.00019178,2]
[315189178,1708915839039,-181.84943336,0.00019178,2]
[315189179,1708915839050,-790.81,0.00019178,2]
[315189180,1708915839062,-502.62882025,0.00019178,2]
[315189181,1708915839074,-500.0,0.00019178,2]
[315189182,1708915839086,-500.0,0.00019178,2]
[315189183,1708915839099,-500.0,0.00019178,2]
[315189184,1708915839112,-502.70298707,0.00019178,2]
[315189185,1708915839127,-500.0,0.00019178,2]
[315189186,1708915839137,-500.0,0.00019178,2]
[315189187,1708915839147,-501.61062038,0.00019178,2]
[315189188,1708915839157,-439.23108346,0.00019178,2]
[315189189,1708915839168,-500.0,0.00019178,2]
[315189190,1708915839180,-500.0,0.00019178,2]
[315189191,1708915839192,-501.71371694,0.00019178,2]
[315189192,1708915839203,-500.0,0.00019178,2]
[315189193,1708915839215,-625.55,0.00019178,2]
[315189194,1708915839226,-500.0,0.00019178,2]
[315189196,1708915839237,-601.83460681,0.00019178,2]
[315189197,1708915839246,-500.0,0.00019178,2]
[315189198,1708915839257,-500.0,0.00019178,2]
[315189199,1708915839267,-500.0,0.00019178,2]
[315189200,1708915839277,-500.0,0.00019178,2]
[315189201,1708915839288,-500.0,0.00019178,2]
[315189202,1708915839299,-500.0,0.00019178,2]
[315189203,1708915839309,-500.0,0.00019178,2]
[315189204,1708915839320,-500.0,0.00019178,2]
[315189205,1708915839330,-500.0,0.00019178,2]
[315189206,1708915839341,-500.0,0.00019178,2]
[315189207,1708915839351,-500.0,0.00019178,2]
[315189208,1708915839362,-417.97011128,0.00019178,2]
[315189209,1708915839372,-500.0,0.00019178,2]
[315189210,1708915839382,-502.56636527,0.00019178,2]
[315189211,1708915839392,-502.47764759,0.00019178,2]
[315189212,1708915839404,-500.0,0.00019178,2]
[315189213,1708915839414,-500.0,0.00019178,2]
[315189214,1708915839425,-500.0,0.00019178,2]
[315189215,1708915839435,-500.0,0.00019178,2]
[315189216,1708915839446,-500.0,0.00019178,2]
[315189217,1708915839456,-527.74951966,0.00019178,2]
[315189218,1708915839467,-503.11301008,0.00019178,2]
[315189219,1708915839478,-501.08668541,0.00019178,2]
[315189220,1708915839488,-500.0,0.00019178,2]
[315189221,1708915839498,-605.07512948,0.00019178,2]
[315189222,1708915839509,-614.77234965,0.00019178,2]
[315189223,1708915839519,-500.0,0.00019178,2]
[315189224,1708915839529,-500.0,0.00019178,2]
[315189225,1708915839540,-500.0,0.00019178,2]
[315189226,1708915839550,-500.0,0.00019178,2]
[315189227,1708915839562,-190.79249269,0.00019178,2]
[315189228,1708915839572,-500.0,0.00019178,2]
[315189229,1708915839583,-500.0,0.00019178,2]
[315189230,1708915839593,-501.29341778,0.00019178,2]
[315189231,1708915839603,-500.0,0.00019178,2]
[315189232,1708915839614,-500.0,0.00019178,2]
[315189233,1708915839625,-1344.39,0.00019178,2]
[315189234,1708915839635,-500.0,0.00019178,2]
[315189235,1708915839645,-500.0,0.00019178,2]
[315189236,1708915839657,-500.0,0.00019178,2]
[315189237,1708915839668,-500.0,0.00019178,2]
[315189238,1708915839681,-500.0,0.00019178,2]
[315189239,1708915839692,-500.0,0.00019178,2]
[315189240,1708915839703,-500.0,0.00019178,2]
[315189241,1708915839713,-500.0,0.00019178,2]
[315189242,1708915839724,-500.0,0.00019178,2]
[315189243,1708915839734,-500.0,0.00019178,2]
[315189244,1708915839745,-187.23729119,0.00019178,2]
[315189245,1708915839756,-500.0,0.00019178,2]
[315189246,1708915839767,-266.2521577,0.00019178,2]
[315189247,1708915839778,-500.0,0.00019178,2]
[315189248,1708915839789,-500.0,0.00019178,2]
[315189249,1708915839799,-500.0,0.00019178,2]
[315189250,1708915839809,-500.0,0.00019178,2]
[315189251,1708915839821,-500.0,0.00019178,2]
[315189252,1708915839833,-500.0,0.00019178,2]
[315189253,1708915839844,-500.0,0.00019178,2]
[315189254,1708915839855,-500.77483683,0.00019178,2]
[315189255,1708915839866,-2235.33,0.00019178,2]
[315189256,1708915839877,-500.0,0.00019178,2]
[315189257,1708915839887,-500.0,0.00019178,2]
[315189258,1708915840037,-500.0,0.00019178,2]
[315189259,1708915840053,-500.0,0.00019178,2]
[315189260,1708915840062,-500.0,0.00019178,2]
[315189261,1708915840073,-500.0,0.00019178,2]
[315189262,1708915840082,-500.0,0.00019178,2]
[315189263,1708915840091,-500.0,0.00019178,2]
[315189264,1708915840100,-500.0,0.00019178,2]
[315189265,1708915840110,-500.0,0.00019178,2]
[315189266,1708915840120,-500.0,0.00019178,2]
[315189267,1708915840129,-500.0,0.00019178,2]
[315189268,1708915840138,-500.0,0.00019178,2]
[315189269,1708915840146,-500.0,0.00019178,2]
[315189270,1708915840156,-500.51038227,0.00019178,2]
[315189271,1708915840165,-500.0,0.00019178,2]
[315189272,1708915840174,-500.6043484,0.00019178,2]
[315189273,1708915840183,-500.0,0.00019178,2]
[315189274,1708915840193,-500.0,0.00019178,2]
[315189275,1708915840202,-500.0,0.00019178,2]
[315189276,1708915840211,-1742.28,0.00019178,2]
[315189277,1708915840220,-500.0,0.00019178,2]
[315189278,1708915840228,-451.87442518,0.00019178,2]
[315189279,1708915840237,-500.0,0.00019178,2]
[315189280,1708915840246,-500.0,0.00019178,2]
[315189281,1708915840255,-501.86676046,0.00019178,2]
[315189282,1708915840264,-500.0,0.00019178,2]
[315189283,1708915840273,-500.0,0.00019178,2]
[315189284,1708915840283,-500.0,0.00019178,2]
[315189285,1708915840292,-500.0,0.00019178,2]
[315189286,1708915840301,-500.0,0.00019178,2]
[315189287,1708915840310,-500.0,0.00019178,2]
[315189288,1708915840319,-500.0,0.00019178,2]
[315189289,1708915840328,-500.0,0.00019178,2]
[315189290,1708915840338,-647.66354051,0.00019178,2]
[315189291,1708915840347,-500.59161089,0.00019178,2]
[315189292,1708915840356,-500.0,0.00019178,2]
[315189293,1708915840365,-682.28,0.00019178,2]
[315189294,1708915840374,-500.0,0.00019178,2]
[315189295,1708915840383,-500.0,0.00019178,2]
[315189296,1708915840392,-500.0,0.00019178,2]
[315189297,1708915840401,-500.0,0.00019178,2]
[315189298,1708915840411,-500.0,0.00019178,2]
[315189299,1708915840420,-500.0,0.00019178,2]
[315189300,1708915840429,-220.42165296,0.00019178,2]
[315189301,1708915840438,-500.0,0.00019178,2]
[315189302,1708915840447,-500.0,0.00019178,2]
[315189303,1708915840456,-500.0,0.00019178,2]
[315189304,1708915840466,-976.95,0.00019178,2]
[315189305,1708915840475,-500.0,0.00019178,2]
[315189306,1708915840484,-500.0,0.00019178,2]
[315189307,1708915840493,-500.0,0.00019178,2]
[315189308,1708915840502,-500.0,0.00019178,2]
[315189309,1708915840512,-500.0,0.00019178,2]
[315189310,1708915840521,-500.0,0.00019178,2]
[315189311,1708915840530,-500.0,0.00019178,2]
[315189312,1708915840539,-500.0,0.00019178,2]
[315189313,1708915840548,-500.0,0.00019178,2]
[315189314,1708915840558,-500.0,0.00019178,2]
[315189315,1708915840567,-242.83946742,0.00019178,2]
[315189316,1708915840577,-500.0,0.00019178,2]
[315189317,1708915840586,-500.0,0.00019178,2]
[315189318,1708915840594,-500.0,0.00019178,2]
[315189319,1708915840603,-500.0,0.00019178,2]
[315189320,1708915840613,-500.0,0.00019178,2]
[315189321,1708915840622,-500.0,0.00019178,2]
[315189322,1708915840634,-397.25117169,0.00019178,2]
[315189323,1708915840643,-500.0,0.00019178,2]
[315189324,1708915840653,-500.0,0.00019178,2]
[315189325,1708915840662,-500.0,0.00019178,2]
[315189326,1708915840671,-500.0,0.00019178,2]
[315189327,1708915840680,-500.0,0.00019178,2]
[315189328,1708915840689,-205.48522156,0.00019178,2]
[315189329,1708915840698,-500.0,0.00019178,2]
[315189330,1708915840707,-500.0,0.00019178,2]
[315189331,1708915840717,-500.67937489,0.00019178,2]
[315189332,1708915840726,-500.0,0.00019178,2]
[315189333,1708915840735,-500.0,0.00019178,2]
[315189334,1708915840744,-170.14503892,0.00019178,2]
[315189335,1708915840753,-200.0,0.00019178,2]
[315189336,1708915840762,-944.64,0.00019178,2]
[315189337,1708915840771,-500.0,0.00019178,2]
[315189338,1708915840780,-500.0,0.00019178,2]
[315189339,1708915840789,-711.05,0.00019178,2]
[315189340,1708915840799,-500.0,0.00019178,2]
[315189341,1708915840809,-500.0,0.00019178,2]
[315189342,1708915840818,-500.0,0.00019178,2]
[315189343,1708915840827,-500.0,0.00019178,2]
[315189344,1708915840836,-10940.42,0.00019178,2]
[315189345,1708915840846,-368.55067157,0.00019178,2]
[315189346,1708915840855,-500.0,0.00019178,2]
[315189347,1708915840864,-1936.88,0.00019178,2]
[315189348,1708915840873,-500.0,0.00019178,2]
[315189349,1708915840882,-177.56440176,0.00019178,2]
[315189350,1708915840892,-4089.46,0.00019178,2]
[315189351,1708915840900,-500.0,0.00019178,2]
[315189352,1708915840910,-506.82130633,0.00019178,2]
[315189353,1708915840919,-500.0,0.00019178,2]
[315189354,1708915840928,-500.0,0.00019178,2]
[315189355,1708915840938,-500.0,0.00019178,2]
[315189356,1708915840947,-500.0,0.00019178,2]
[315189357,1708915840956,-500.0,0.00019178,2]
[315189358,1708915840965,-500.0,0.00019178,2]
[315189359,1708915840974,-500.0,0.00019178,2]
[315189360,1708915840983,-500.0,0.00019178,2]
[315189361,1708915840993,-500.0,0.00019178,2]
[315189362,1708915841002,-500.0,0.00019178,2]
[315189363,1708915841011,-1899.67,0.00019178,2]
[315189364,1708915841020,-500.0,0.00019178,2]
[315189365,1708915841029,-2878.99,0.00019178,2]
[315189366,1708915841038,-604.45,0.00019178,2]
[315189367,1708915841047,-2560.37,0.00019178,2]
[315189368,1708915841056,-500.0,0.00019178,2]
[315189369,1708915841065,-500.0,0.00019178,2]
[315189370,1708915841074,-500.0,0.00019178,2]
[315189371,1708915841083,-500.0,0.00019178,2]
[315189372,1708915841092,-500.0,0.00019178,2]
[315189373,1708915841101,-543.31285923,0.00019178,2]
[315189374,1708915841110,-500.0,0.00019178,2]
[315189375,1708915841122,-2069.88,0.00019178,2]
[315189376,1708915841131,-500.0,0.00019178,2]
[315189377,1708915841140,-500.0,0.00019178,2]
[315189378,1708915841149,-506.6715186,0.00019178,2]
[315189379,1708915841159,-500.0,0.00019178,2]
[315189380,1708915841168,-500.43159131,0.00019178,2]
[315189381,1708915841177,-500.0,0.00019178,2]
[315189382,1708915841186,-1000.0,0.00019178,2]
[315189383,1708915841195,-500.0,0.00019178,2]
[315189384,1708915841205,-500.0,0.00019178,2]
[315189385,1708915841214,-500.0,0.00019178,2]
[315189386,1708915841223,-500.43962735,0.00019178,2]
[315189387,1708915841232,-500.0,0.00019178,2]
[315189388,1708915841241,-500.0,0.00019178,2]
[315189389,1708915841251,-500.0,0.00019178,2]
[315189390,1708915841260,-21914.38,0.00019178,2]
[315189391,1708915841269,-500.0,0.00019178,2]
[315189392,1708915841278,-500.0,0.00019178,2]
[315189393,1708915841287,-500.0,0.00019178,2]
[315189394,1708915841296,-500.0,0.00019178,2]
[315189395,1708915841305,-268.97832651,0.00019178,2]
[315189396,1708915841315,-500.0,0.00019178,2]
[315189398,1708915841324,-500.0,0.00019178,2]
[315189400,1708915841333,-500.0,0.00019178,2]
[315189402,1708915841342,-500.0,0.00019178,2]
[315189404,1708915841351,-501.16229543,0.00019178,2]
[315189406,1708915841360,-1709.51,0.00019178,2]
[315189408,1708915841369,-500.20438763,0.00019178,2]
[315189410,1708915841378,-573.72782983,0.00019178,2]
[315189412,1708915841388,-500.0,0.00019178,2]
[315189414,1708915841397,-500.76681216,0.00019178,2]
[315189416,1708915841406,-500.3462092,0.00019178,2]
[315189418,1708915841415,-500.0,0.00019178,2]
[315189420,1708915841424,-500.0,0.00019178,2]
[315189422,1708915841433,-500.0,0.00019178,2]
[315189424,1708915841442,-7829.06,0.00019178,2]
[315189426,1708915841451,-2147.93,0.00019178,2]
[315189427,1708915841461,-500.0,0.00019178,2]
[315189428,1708915841470,-500.0,0.00019178,2]
[315189429,1708915841480,-500.0,0.00019178,2]
[315189430,1708915841489,-500.0,0.00019178,2]
[315189431,1708915841498,-10778.76,0.00019178,2]
[315189432,1708915841507,-500.0,0.00019178,2]
[315189433,1708915841516,-602.01,0.00019178,2]
[315189434,1708915841525,-234.57397735,0.00019178,2]
[315189435,1708915841535,-500.0,0.00019178,2]
[315189437,1708915841544,-500.0,0.00019178,2]
[315189439,1708915841553,-2972.16,0.00019178,2]
[315189440,1708915841562,-500.0,0.00019178,2]
[315189441,1708915841572,-500.0,0.00019178,2]
[315189442,1708915841581,-770.06,0.00019178,2]
[315189443,1708915841590,-500.0,0.00019178,2]
[315189444,1708915841599,-500.0,0.00019178,2]
[315189445,1708915841608,-500.0,0.00019178,2]
[315189446,1708915841616,-500.0,0.00019178,2]
[315189447,1708915841626,-359.8403748,0.00019178,2]
[315189448,1708915841635,-625.93045909,0.00019178,2]
[315189449,1708915841644,-518.49613271,0.00019178,2]
[315189450,1708915841654,-501.0884164,0.00019178,2]
[315189451,1708915841663,-500.0,0.00019178,2]
[315189452,1708915841672,-2399.49,0.00019178,2]
[315189453,1708915841681,-500.0,0.00019178,2]
[315189454,1708915841690,-571.87,0.00019178,2]
[315189455,1708915841699,-571.87,0.00019178,2]
[315189456,1708915841708,-571.87,0.00019178,2]
[315189457,1708915841718,-571.87,0.00019178,2]
[315189458,1708915841727,-571.87,0.00019178,2]
[315189459,1708915841736,-571.87,0.00019178,2]
[315189460,1708915841745,-500.0,0.00019178,2]
[315189461,1708915841754,-500.0,0.00019178,2]
[315189462,1708915841764,-500.0,0.00019178,2]
[315189463,1708915841773,-500.0,0.00019178,2]
[315189464,1708915841782,-3064.17,0.00019178,2]
[315189465,1708915841791,-22334.57,0.00019178,2]
[315189466,1708915841800,-500.0,0.00019178,2]
[315189467,1708915841809,-500.0,0.00019178,2]
[315189468,1708915841820,-500.0,0.00019178,2]
[315189469,1708915841829,-500.0,0.00019178,2]
[315189470,1708915841838,-500.0,0.00019178,2]
[315189471,1708915841848,-500.0,0.00019178,2]
[315189472,1708915841857,-500.0,0.00019178,2]
[315189473,1708915841866,-500.0,0.00019178,2]
[315189474,1708915841875,-500.52146874,0.00019178,2]
[315189475,1708915841885,-1224.31,0.00019178,2]
[315189476,1708915841894,-4369.39,0.00019178,2]
[315189477,1708915841903,-500.0,0.00019178,2]
[315189478,1708915841912,-500.0,0.00019178,2]
[315189479,1708915841921,-500.0,0.00019178,2]
[315189480,1708915841930,-500.0,0.00019178,2]
[315189481,1708915841940,-266.51557641,0.00019178,2]
[315189482,1708915841949,-2136.68,0.00019178,2]
[315189483,1708915841958,-500.58116796,0.00019178,2]
[315189484,1708915841967,-491.43084547,0.00019178,2]
[315189485,1708915841977,-500.0,0.00019178,2]
[315189486,1708915841986,-3356.93,0.00019178,2]
[315189487,1708915841994,-501.13519098,0.00019178,2]
[315189488,1708915842003,-500.0,0.00019178,2]
[315189489,1708915842013,-500.0,0.00019178,2]
[315189490,1708915842022,-500.0,0.00019178,2]
[315189491,1708915842031,-1539.7,0.00019178,2]
[315189492,1708915842040,-500.0,0.00019178,2]
[315189493,1708915842049,-500.0,0.00019178,2]
[315189494,1708915842058,-1656.42,0.00019178,2]
[315189495,1708915842066,-500.0,0.00019178,2]
[315189496,1708915842075,-500.0,0.00019178,2]
[315189497,1708915842084,-400.24472666,0.00019178,2]
[315189498,1708915842093,-163.6093,0.00019178,2]
[315189499,1708915842102,-165.619507,0.00019178,2]
[315189500,1708915842112,-166.666666,0.00019178,2]
[315189501,1708915842121,-164.827869,0.00019178,2]
[315189502,1708915842130,-2908.84509306,0.00019352,2]
[315189503,1708915842139,-174.0,0.000194,2]
[315189504,1708915842148,-571.87,0.0001945,2]
[315189505,1708915842158,-559.15393256,0.00019451,2]
[315189506,1708915842167,-571.87,0.00019451,2]
[315189507,1708915842176,-571.87,0.00019451,2]
[315189508,1708915842184,-571.87,0.00019451,2]
[315189509,1708915842193,-571.87,0.00019451,2]
[315189510,1708915842204,-500.0,0.00019452,2]
[315189511,1708915842214,-500.0,0.00019452,2]
[315189512,1708915842223,-500.0,0.00019452,2]
[315189513,1708915842232,-500.0,0.00019452,2]
[315189514,1708915842242,-500.0,0.00019452,2]
[315189515,1708915842251,-752.54,0.00019452,2]
[315189516,1708915842260,-1393.51,0.00019452,2]
[315189517,1708915842269,-500.0,0.00019452,2]
[315189518,1708915842278,-500.0,0.00019452,2]
[315189519,1708915842288,-500.0,0.00019452,2]
[315189520,1708915842297,-1005.8616059,0.00019452,2]
[315189521,1708915842306,-500.0,0.00019452,2]
[315189522,1708915842315,-500.0,0.00019452,2]
[315189523,1708915842324,-500.87195388,0.00019452,2]
[315189524,1708915842333,-500.0,0.00019452,2]
[315189525,1708915842342,-500.0,0.00019452,2]
[315189526,1708915842351,-500.0,0.00019452,2]
[315189527,1708915842360,-500.0,0.00019452,2]
[315189528,1708915842370,-616.05400382,0.00019452,2]
[315189529,1708915842379,-500.0,0.00019452,2]
[315189530,1708915842388,-500.0,0.00019452,2]
[315189531,1708915842398,-500.0,0.00019452,2]
[315189532,1708915842407,-500.0,0.00019452,2]
[315189533,1708915842416,-1528.5,0.00019452,2]
[315189534,1708915842425,-500.0,0.00019452,2]
[315189535,1708915842434,-500.0,0.00019452,2]
[315189536,1708915842444,-790.81,0.00019452,2]
[315189537,1708915842453,-501.09881645,0.00019452,2]
[315189538,1708915842462,-502.06943467,0.00019452,2]
[315189539,1708915842472,-500.0,0.00019452,2]
[315189540,1708915842481,-500.0,0.00019452,2]
[315189541,1708915842490,-500.0,0.00019452,2]
[315189542,1708915842499,-501.27258164,0.00019452,2]
[315189543,1708915842508,-641.98072473,0.00019452,2]
[315189544,1708915842517,-625.55,0.00019452,2]
[315189545,1708915842526,-500.0,0.00019452,2]
[315189546,1708915842534,-500.0,0.00019452,2]
[315189547,1708915842543,-500.0,0.00019452,2]
[315189548,1708915842552,-501.08038985,0.00019452,2]
[315189549,1708915842561,-501.20981282,0.00019452,2]
[315189550,1708915842570,-500.0,0.00019452,2]
[315189551,1708915842579,-501.52062892,0.00019452,2]
[315189552,1708915842588,-500.0,0.00019452,2]
[315189553,1708915842596,-500.0,0.00019452,2]
[315189554,1708915842605,-500.0,0.00019452,2]
[315189555,1708915842614,-500.0,0.00019452,2]
[315189556,1708915842719,-500.0,0.00019452,2]
[315189557,1708915842729,-502.20415089,0.00019452,2]
[315189558,1708915842738,-581.13636128,0.00019452,2]
[315189559,1708915842748,-500.0,0.00019452,2]
[315189560,1708915842757,-500.0,0.00019452,2]
[315189561,1708915842766,-501.7897385,0.00019452,2]
[315189562,1708915842775,-500.0,0.00019452,2]
[315189563,1708915842784,-502.89262175,0.00019452,2]
[315189564,1708915842794,-500.0,0.00019452,2]
[315189565,1708915842803,-500.0,0.00019452,2]
[315189566,1708915842812,-501.2748159,0.00019452,2]
[315189567,1708915842821,-500.0,0.00019452,2]
[315189568,1708915842830,-500.0,0.00019452,2]
[315189569,1708915842839,-500.0,0.00019452,2]
[315189570,1708915842848,-500.0,0.00019452,2]
[315189571,1708915842857,-588.75636197,0.00019452,2]
[315189572,1708915842867,-1344.39,0.00019452,2]
[315189573,1708915842876,-501.671664,0.00019452,2]
[315189574,1708915842885,-500.0,0.00019452,2]
[315189575,1708915842895,-500.0,0.00019452,2]
[315189576,1708915842905,-500.0,0.00019452,2]
[315189577,1708915842914,-292.15226253,0.00019452,2]
[315189578,1708915842925,-483.72738854,0.00019452,2]
[315189579,1708915842934,-500.0,0.00019452,2]
[315189580,1708915842943,-500.0,0.00019452,2]
[315189581,1708915842953,-414.96663376,0.00019452,2]
[315189582,1708915842962,-500.0,0.00019452,2]
[315189583,1708915842972,-500.0,0.00019452,2]
[315189584,1708915842981,-2235.33,0.00019452,2]
[315189585,1708915842990,-500.0,0.00019452,2]
[315189586,1708915842999,-500.0,0.00019452,2]
[315189587,1708915843009,-500.0,0.00019452,2]
[315189588,1708915843018,-500.0,0.00019452,2]
[315189589,1708915843027,-625.42418901,0.00019452,2]
[315189590,1708915843036,-500.0,0.00019452,2]
[315189591,1708915843045,-500.0,0.00019452,2]
[315189592,1708915843054,-500.0,0.00019452,2]
[315189593,1708915843063,-500.0,0.00019452,2]
[315189594,1708915843072,-500.24182891,0.00019452,2]
[315189595,1708915843081,-500.0,0.00019452,2]
[315189596,1708915843090,-500.0,0.00019452,2]
[315189597,1708915843100,-631.67993521,0.00019452,2]
[315189599,1708915843109,-500.0,0.00019452,2]
[315189600,1708915843119,-500.0,0.00019452,2]
[315189602,1708915843129,-500.0,0.00019452,2]
[315189604,1708915843138,-500.0,0.00019452,2]
[315189605,1708915843148,-1742.28,0.00019452,2]
[315189606,1708915843157,-500.0,0.00019452,2]
[315189608,1708915843167,-500.0,0.00019452,2]
[315189609,1708915843176,-500.0,0.00019452,2]
[315189610,1708915843185,-500.0,0.00019452,2]
[315189611,1708915843194,-500.0,0.00019452,2]
[315189612,1708915843203,-501.16512852,0.00019452,2]
[315189613,1708915843212,-500.0,0.00019452,2]
[315189614,1708915843221,-500.0,0.00019452,2]
[315189616,1708915843231,-500.0,0.00019452,2]
[315189618,1708915843240,-500.0,0.00019452,2]
[315189620,1708915843249,-500.0,0.00019452,2]
[315189622,1708915843258,-500.0,0.00019452,2]
[315189623,1708915843267,-682.28,0.00019452,2]
[315189624,1708915843276,-500.0,0.00019452,2]
[315189625,1708915843285,-500.0,0.00019452,2]
[315189626,1708915843295,-500.0,0.00019452,2]
[315189627,1708915843304,-1785.43,0.00019452,2]
[315189628,1708915843312,-501.22568197,0.00019452,2]
[315189629,1708915843321,-500.0,0.00019452,2]
[315189630,1708915843330,-500.0,0.00019452,2]
[315189631,1708915843339,-500.0,0.00019452,2]
[315189632,1708915843349,-500.0,0.00019452,2]
[315189633,1708915843357,-500.0,0.00019452,2]
[315189634,1708915843366,-976.95,0.00019452,2]
[315189635,1708915843375,-503.92602803,0.00019452,2]
[315189636,1708915843383,-503.89798039,0.00019452,2]
[315189638,1708915843392,-440.90678372,0.00019452,2]
[315189640,1708915843401,-312.51592479,0.00019452,2]
[315189642,1708915843411,-500.0,0.00019452,2]
[315189643,1708915843420,-500.0,0.00019452,2]
[315189645,1708915843429,-500.0,0.00019452,2]
[315189647,1708915843438,-500.0,0.00019452,2]
[315189649,1708915843447,-500.0,0.00019452,2]
[315189650,1708915843456,-501.61886765,0.00019452,2]
[315189652,1708915843465,-500.0,0.00019452,2]
[315189653,1708915843474,-502.59254661,0.00019452,2]
[315189655,1708915843483,-500.0,0.00019452,2]